fUST/lending_fUST_20250115
["ID","MTS","AMOUNT","RATE_DAILY","PERIOD"]
[349023960,1736941851014,-699.87,0.00020546,3]
[349023962,1736941851024,-500.0,0.00020546,3]
[349023964,1736941851033,-500.0,0.00020546,3]
[349023966,1736941851045,-500.0,0.00020546,3]
[349023968,1736941851054,-151.0,0.00020546,2]
[349023970,1736941851064,-736.84,0.00020546,3]
[349023972,1736941851074,-500.0,0.00020546,3]
[349023974,1736941851084,-151.0,0.00020546,2]
[349023976,1736941851093,-687.96,0.00020546,3]
[349023978,1736941851103,-19334.51,0.00020546,3]
[349023980,1736941851114,-500.0,0.00020546,3]
[349023982,1736941851128,-556.269652,0.00020546,2]
[349023984,1736941851139,-887.87,0.00020546,3]
[349023986,1736941851149,-556.269642,0.00020546,2]
[349023988,1736941851158,-423.422106,0.00020546,2]
[349023991,1736941851170,-423.422098,0.00020546,2]
[349023992,1736941851179,-619.17,0.00020546,3]
[349023995,1736941851189,-500.0,0.00020546,3]
[349023997,1736941851202,-188.263472,0.00020546,2]
[349023999,1736941851211,-188.263468,0.00020546,2]
[349024000,1736941851221,-500.0,0.00020546,3]
[349024003,1736941851230,-151.0,0.00020546,2]
[349024004,1736941851240,-500.0,0.00020546,3]
[349024007,1736941851250,-500.0,0.00020547,3]
[349024008,1736941851259,-500.0,0.00020547,3]
[349024010,1736941851268,-500.0,0.00020547,3]
[349024012,1736941851278,-597.91,0.00020547,3]
[349024015,1736941851288,-500.0,0.00020547,3]
[349024017,1736941851299,-201.274958,0.00020547,2]
[349024018,1736941851308,-151.0,0.00020547,2]
[349024020,1736941851318,-3834.85,0.00020547,3]
[349024022,1736941851327,-1842.52,0.00020547,3]
[349024024,1736941851337,-500.0,0.00020547,3]
[349024026,1736941851347,-500.0,0.00020547,3]
[349024028,1736941851356,-500.0,0.00020547,3]
[349024030,1736941851366,-500.0,0.00020547,3]
[349024032,1736941851376,-168.308691,0.00020548,2]
[349024034,1736941851387,-178.08062501,0.00020573,2]
[349024036,1736941851397,-151.09417526,0.00020573,2]
[349024038,1736941851407,-271.40336724,0.00020573,2]
[349024040,1736941851418,-167.60566333,0.00020573,2]
[349024043,1736941851428,-265.78108471,0.00020573,2]
[349024045,1736941851438,-259.16320333,0.00020573,2]
[349024046,1736941851448,-217.45308276,0.00020573,2]
[349024048,1736941851458,-155.09777006,0.00020573,2]
[349024050,1736941851468,-157.99759864,0.00020573,2]
[349024052,1736941851477,-260.62293349,0.00020573,2]
[349024054,1736941851488,-151.09888317,0.00020573,2]
[349024056,1736941851497,-266.92582199,0.00020573,2]
[349024058,1736941851507,-151.09525013,0.00020573,2]
[349024060,1736941851516,-602.34339036,0.0002059,2]
[349024062,1736941851526,-500.0,0.00020599,3]
[349024064,1736941851536,-500.0,0.00020599,3]
[349024066,1736941851546,-627.09883679,0.00020599,3]
[349024068,1736941851555,-500.0,0.00020599,3]
[349024070,1736941851566,-500.0,0.00020599,3]
[349024072,1736941851575,-427.4922898,0.00020599,3]
[349024074,1736941851584,-489.99579047,0.00020599,3]
[349024076,1736941851594,-500.0,0.00020599,3]
[349024078,1736941851603,-500.0,0.00020599,3]
[349024080,1736941851613,-500.0,0.00020599,3]
[349024082,1736941851623,-500.0,0.00020599,3]
[349024084,1736941851632,-500.0,0.00020599,3]
[349024086,1736941851642,-500.0,0.00020599,3]
[349024088,1736941851651,-788.64,0.00020599,3]
[349024090,1736941851661,-500.0,0.00020599,3]
[349024092,1736941851670,-662.35,0.00020599,3]
[349024093,1736941851680,-500.0,0.00020599,3]
[349024096,1736941851691,-500.0,0.00020599,3]
[349024097,1736941851701,-500.0,0.00020599,3]
[349024100,1736941851711,-500.0,0.00020599,3]
[349024102,1736941851721,-911.3,0.00020599,3]
[349024109,1736941851792,-500.0,0.00020599,3]
[349024111,1736941851804,-500.0,0.00020599,3]
[349024114,1736941851814,-500.0,0.00020599,3]
[349024115,1736941851824,-500.0,0.00020599,3]
[349024117,1736941851835,-500.0,0.00020599,3]
[349024119,1736941851844,-500.0,0.00020599,3]
[349024121,1736941851853,-500.0,0.00020599,3]
[349024123,1736941851863,-500.0,0.00020599,3]
[349024125,1736941851872,-500.0,0.00020599,3]
[349024127,1736941851882,-500.0,0.00020599,3]
[349024129,1736941851892,-500.0,0.00020599,3]
[349024131,1736941851901,-500.0,0.00020599,3]
[349024133,1736941851911,-500.0,0.00020599,3]
[349024135,1736941851921,-500.0,0.00020599,3]
[349024137,1736941851930,-583.26175938,0.00020599,3]
[349024139,1736941851940,-500.0,0.00020599,3]
[349024141,1736941851950,-500.0,0.00020599,3]
[349024143,1736941851959,-151.0,0.000206,3]
[349024145,1736941851969,-6408.57,0.00020605,3]
[349024147,1736941851978,-500.0,0.00020605,3]
[349024149,1736941851987,-500.0,0.00020605,3]
[349024151,1736941851998,-5326.98,0.00020605,3]
[349024153,1736941852007,-151.23423922,0.00020639,2]
[349024155,1736941852017,-151.23423922,0.00020639,2]
[349024157,1736941852026,-151.23423922,0.00020639,2]
[349024159,1736941852035,-151.23423922,0.00020639,2]
[349024161,1736941852044,-151.23423922,0.00020639,2]
[349024163,1736941852053,-151.23423922,0.00020639,2]
[349024165,1736941852062,-151.23423922,0.00020639,2]
[349024167,1736941852072,-151.23423922,0.00020639,2]
[349024169,1736941852082,-151.23423922,0.00020639,2]
[349024171,1736941852092,-151.23423922,0.00020639,2]
[349024173,1736941852102,-151.23423922,0.00020639,2]
[349024175,1736941852112,-151.23,0.00020639,2]
[349024177,1736941852126,-574.45,0.00020681,3]
[349024179,1736941852136,-500.0,0.00020682,3]
[349024181,1736941852145,-1322.86,0.00020682,3]
[349024183,1736941852155,-852.02,0.00020682,3]
[349024185,1736941852165,-730.97,0.00020682,3]
[349024187,1736941852176,-500.0,0.00020682,3]
[349024189,1736941852187,-502.1,0.00020682,3]
[349024191,1736941852197,-500.0,0.00020682,3]
[349024193,1736941852207,-500.0,0.00020682,3]
[349024195,1736941852216,-904.9,0.00020682,3]
[349024197,1736941852227,-585.34,0.00020682,3]
[349024200,1736941852237,-1623.31,0.00020682,3]
[349024202,1736941852247,-500.0,0.00020682,3]
[349024204,1736941852257,-694.06,0.00020682,3]
[349024206,1736941852267,-500.0,0.00020682,3]
[349024208,1736941852277,-698.14,0.00020682,3]
[349024210,1736941852287,-1005.53,0.00020682,3]
[349024211,1736941852297,-921.61,0.00020682,3]
[349024213,1736941852307,-500.0,0.00020682,3]
[349024215,1736941852317,-1709.93,0.00020682,3]
[349024217,1736941852327,-500.0,0.00020682,3]
[349024220,1736941852337,-264.53475129,0.00020682,3]
[349024222,1736941852347,-919.73,0.00020682,3]
[349024224,1736941852357,-500.0,0.00020683,3]
[349024226,1736941852367,-500.0,0.00020683,3]
[349024228,1736941852377,-615.57,0.00020683,3]
[349024230,1736941852385,-583.51,0.00020683,3]
[349024231,1736941852395,-500.0,0.00020683,3]
[349024233,1736941852405,-500.0,0.00020683,3]
[349024235,1736941852415,-500.0,0.00020683,3]
[349024238,1736941852426,-500.0,0.00020683,3]
[349024239,1736941852435,-500.0,0.00020683,3]
[349024241,1736941852445,-500.0,0.00020683,3]
[349024244,1736941852454,-500.0,0.00020683,3]
[349024246,1736941852464,-500.0,0.00020683,3]
[349024248,1736941852474,-500.0,0.00020683,3]
[349024250,1736941852484,-500.0,0.00020683,3]
[349024252,1736941852494,-621.45,0.00020683,3]
[349024254,1736941852504,-500.0,0.00020683,3]
[349024256,1736941852514,-500.0,0.00020683,3]
[349024258,1736941852523,-500.0,0.00020683,3]
[349024259,1736941852533,-500.0,0.00020683,3]
[349024261,1736941852542,-500.0,0.00020683,3]
[349024264,1736941852553,-500.0,0.00020683,3]
[349024265,1736941852563,-500.0,0.00020683,3]
[349024268,1736941852573,-500.0,0.00020683,3]
[349024269,1736941852582,-500.0,0.00020683,3]
[349024271,1736941852592,-1211.75,0.00020683,2]
[349024274,1736941852602,-500.0,0.00020683,3]
[349024275,1736941852612,-44563.32,0.00020683,3]
[349024277,1736941852622,-741.96,0.00020683,3]
[349024279,1736941852632,-873.43,0.00020683,3]
[349024281,1736941852642,-500.0,0.00020683,3]
[349024283,1736941852651,-510.83,0.00020683,3]
[349024285,1736941852660,-500.0,0.00020683,3]
[349024287,1736941852670,-500.0,0.00020683,3]
[349024289,1736941852679,-500.0,0.00020683,3]
[349024291,1736941852689,-699.87,0.00020683,3]
[349024293,1736941852699,-500.0,0.00020683,3]
[349024295,1736941852709,-500.0,0.00020683,3]
[349024297,1736941852719,-500.0,0.00020683,3]
[349024299,1736941852728,-736.84,0.00020683,3]
[349024301,1736941852738,-500.0,0.00020683,3]
[349024303,1736941852747,-687.96,0.00020683,3]
[349024305,1736941852757,-19334.51,0.00020683,3]
[349024307,1736941852767,-500.0,0.00020683,3]
[349024309,1736941852776,-887.87,0.00020683,3]
[349024311,1736941852785,-619.17,0.00020683,3]
[349024313,1736941852795,-500.0,0.00020683,3]
[349024315,1736941852804,-500.0,0.00020683,3]
[349024317,1736941852814,-500.0,0.00020683,3]
[349024319,1736941852824,-500.0,0.00020684,3]
[349024321,1736941852833,-500.0,0.00020684,3]
[349024323,1736941852843,-384.56882364,0.00020684,3]
[349024325,1736941852852,-597.91,0.00020684,3]
[349024327,1736941852862,-500.0,0.00020684,3]
[349024329,1736941852872,-3834.85,0.00020684,3]
[349024331,1736941852882,-1842.52,0.00020684,3]
[349024333,1736941852891,-500.0,0.00020684,3]
[349024335,1736941852900,-500.0,0.00020684,3]
[349024337,1736941852911,-500.0,0.00020684,3]
[349024339,1736941852920,-500.0,0.00020684,3]
[349024340,1736941852931,-151.0,0.000207,4]
[349024342,1736941852940,-151.0,0.000207,3]
[349024344,1736941852949,-1267.1693648,0.00020714,2]
[349024346,1736941852959,-157.7442925,0.00020721,2]
[349024348,1736941852969,-602.34339036,0.00020728,2]
[349024350,1736941852978,-500.0,0.00020736,3]
[349024352,1736941852987,-500.0,0.00020736,3]
[349024354,1736941852996,-500.0,0.00020736,3]
[349024356,1736941853006,-500.0,0.00020736,3]
[349024365,1736941853081,-500.0,0.00020736,3]
[349024367,1736941853090,-500.0,0.00020736,3]
[349024369,1736941853100,-500.0,0.00020736,3]
[349024371,1736941853109,-500.0,0.00020736,3]
[349024373,1736941853122,-500.0,0.00020736,3]
[349024375,1736941853134,-500.0,0.00020736,3]
[349024377,1736941853143,-788.64,0.00020736,3]
[349024379,1736941853153,-500.0,0.00020736,3]
[349024381,1736941853163,-662.35,0.00020736,3]
[349024383,1736941853175,-500.0,0.00020736,3]
[349024385,1736941853184,-500.0,0.00020736,3]
[349024387,1736941853195,-500.0,0.00020736,3]
[349024389,1736941853205,-500.0,0.00020736,3]
[349024391,1736941853215,-911.3,0.00020736,3]
[349024393,1736941853224,-500.0,0.00020736,3]
[349024395,1736941853234,-500.0,0.00020736,3]
[349024397,1736941853243,-500.0,0.00020736,3]
[349024399,1736941853254,-500.0,0.00020736,3]
[349024401,1736941853263,-500.0,0.00020736,3]
[349024402,1736941853272,-500.0,0.00020736,3]
[349024404,1736941853283,-528.9767703,0.00020736,3]
[349024406,1736941853293,-500.0,0.00020736,3]
[349024408,1736941853303,-500.0,0.00020736,3]
[349024410,1736941853312,-500.0,0.00020736,3]
[349024412,1736941853322,-500.0,0.00020736,3]
[349024413,1736941853332,-500.0,0.00020736,3]
[349024414,1736941853342,-500.0,0.00020736,3]
[349024415,1736941853352,-500.0,0.00020736,3]
[349024416,1736941853362,-500.0,0.00020736,3]
[349024417,1736941853372,-6408.57,0.00020742,3]
[349024418,1736941853382,-500.0,0.00020742,3]
[349024419,1736941853391,-500.0,0.00020742,3]
[349024420,1736941853401,-5326.98,0.00020742,3]
[349024421,1736941853411,-9426.43,0.000208,2]
[349024422,1736941853421,-151.0,0.000208,3]
[349024423,1736941853431,-1000.000001,0.000208,2]
[349024424,1736941853441,-574.45,0.00020818,3]
[349024425,1736941853451,-500.0,0.00020819,3]
[349024426,1736941853461,-1322.86,0.00020819,3]
[349024428,1736941853471,-852.02,0.00020819,3]
[349024429,1736941853481,-730.97,0.00020819,3]
[349024432,1736941853493,-500.0,0.00020819,3]
[349024433,1736941853503,-500.0,0.00020819,3]
[349024436,1736941853513,-904.9,0.00020819,3]
[349024438,1736941853523,-585.34,0.00020819,3]
[349024439,1736941853533,-1623.31,0.00020819,3]
[349024441,1736941853543,-694.06,0.00020819,3]
[349024444,1736941853553,-500.0,0.00020819,3]
[349024445,1736941853563,-698.14,0.00020819,3]
[349024447,1736941853573,-1005.53,0.00020819,3]
[349024449,1736941853582,-921.61,0.00020819,3]
[349024451,1736941853592,-500.0,0.00020819,3]
[349024453,1736941853602,-1709.93,0.00020819,3]
[349024455,1736941853612,-500.0,0.00020819,3]
[349024457,1736941853622,-919.73,0.00020819,3]
[349024459,1736941853631,-281.36892756,0.0002082,3]
[349024461,1736941853641,-500.0,0.0002082,3]
[349024463,1736941853651,-615.57,0.0002082,3]
[349024465,1736941853660,-583.51,0.0002082,3]
[349024468,1736941853670,-500.0,0.0002082,3]
[349024470,1736941853680,-500.0,0.0002082,3]
[349024471,1736941853689,-500.0,0.0002082,3]
[349024473,1736941853698,-500.0,0.0002082,3]
[349024475,1736941853708,-500.0,0.0002082,3]
[349024477,1736941853719,-500.0,0.0002082,3]
[349024479,1736941853728,-500.0,0.0002082,3]
[349024481,1736941853739,-500.0,0.0002082,3]
[349024483,1736941853748,-500.0,0.0002082,3]
[349024485,1736941853758,-500.0,0.0002082,3]
[349024487,1736941853767,-621.45,0.0002082,3]
[349024489,1736941853777,-500.0,0.0002082,3]
[349024491,1736941853787,-500.0,0.0002082,3]
[349024494,1736941853798,-500.0,0.0002082,3]
[349024495,1736941853807,-500.0,0.0002082,3]
[349024498,1736941853818,-500.0,0.0002082,3]
[349024500,1736941853828,-500.0,0.0002082,3]
[349024502,1736941853838,-500.0,0.0002082,3]
[349024504,1736941853848,-500.0,0.0002082,3]
[349024506,1736941853857,-500.0,0.0002082,3]
[349024508,1736941853867,-1211.75,0.0002082,2]
[349024509,1736941853877,-500.0,0.0002082,3]
[349024511,1736941853888,-44563.32,0.0002082,3]
[349024513,1736941853898,-741.96,0.0002082,3]
[349024515,1736941853908,-500.0,0.0002082,3]
[349024517,1736941853918,-873.43,0.0002082,3]
[349024520,1736941853928,-510.83,0.0002082,3]
[349024522,1736941853937,-500.0,0.0002082,3]
[349024524,1736941853947,-500.0,0.0002082,3]
[349024526,1736941853956,-500.0,0.0002082,3]
[349024528,1736941853965,-699.87,0.0002082,3]
[349024530,1736941853975,-500.0,0.0002082,3]
[349024532,1736941853985,-500.0,0.0002082,3]
[349024534,1736941853995,-500.0,0.0002082,3]
[349024536,1736941854005,-736.84,0.0002082,3]
[349024538,1736941854015,-500.0,0.0002082,3]
[349024540,1736941854024,-687.96,0.0002082,3]
[349024542,1736941854034,-19334.51,0.0002082,3]
[349024543,1736941854044,-500.0,0.0002082,3]
[349024545,1736941854055,-887.87,0.0002082,3]
[349024547,1736941854064,-619.17,0.0002082,3]
[349024549,1736941854075,-500.0,0.0002082,3]
[349024551,1736941854085,-500.0,0.0002082,3]
[349024553,1736941854095,-500.0,0.00020821,3]
[349024555,1736941854105,-500.0,0.00020821,3]
[349024558,1736941854115,-597.91,0.00020821,3]
[349024560,1736941854127,-500.0,0.00020821,3]
[349024561,1736941854138,-3834.85,0.00020821,3]
[349024563,1736941854149,-1842.52,0.00020821,3]
[349024565,1736941854159,-500.0,0.00020821,3]
[349024567,1736941854169,-500.0,0.00020821,3]
[349024569,1736941854178,-500.0,0.00020821,3]
[349024571,1736941854188,-500.0,0.00020821,3]
[349024573,1736941854202,-602.34339036,0.00020866,2]
[349024575,1736941854212,-500.0,0.00020873,2]
[349024577,1736941854222,-500.0,0.00020873,2]
[349024585,1736941854290,-500.0,0.00020873,3]
[349024587,1736941854302,-521.47513368,0.00020873,3]
[349024589,1736941854312,-500.0,0.00020873,3]
[349024591,1736941854322,-203.12256198,0.00020873,3]
[349024593,1736941854332,-500.0,0.00020873,3]
[349024595,1736941854342,-500.0,0.00020873,3]
[349024597,1736941854352,-500.0,0.00020873,3]
[349024599,1736941854362,-500.0,0.00020873,3]
[349024601,1736941854372,-500.0,0.00020873,3]
[349024603,1736941854381,-500.0,0.00020873,3]
[349024605,1736941854391,-788.64,0.00020873,3]
[349024607,1736941854401,-500.0,0.00020873,3]
[349024609,1736941854411,-662.35,0.00020873,3]
[349024611,1736941854421,-500.0,0.00020873,3]
[349024613,1736941854431,-517.61435482,0.00020873,3]
[349024615,1736941854440,-500.0,0.00020873,3]
[349024617,1736941854450,-911.3,0.00020873,3]
[349024619,1736941854460,-500.0,0.00020873,3]
[349024621,1736941854470,-500.0,0.00020873,3]
[349024623,1736941854479,-500.0,0.00020873,3]
[349024625,1736941854488,-500.0,0.00020873,3]
[349024627,1736941854499,-219.95353552,0.00020873,3]
[349024629,1736941854509,-500.0,0.00020873,3]
[349024631,1736941854520,-500.0,0.00020873,3]
[349024633,1736941854530,-500.0,0.00020873,3]
[349024635,1736941854539,-500.0,0.00020873,3]
[349024637,1736941854549,-500.0,0.00020873,3]
[349024639,1736941854559,-500.0,0.00020873,3]
[349024641,1736941854569,-200.1037843,0.00020873,3]
[349024643,1736941854579,-500.0,0.00020873,3]
[349024645,1736941854589,-500.0,0.00020873,3]
[349024647,1736941854598,-6408.57,0.00020879,3]
[349024649,1736941854608,-500.0,0.00020879,3]
[349024651,1736941854618,-500.0,0.00020879,3]
[349024653,1736941854628,-5326.98,0.00020879,3]
[349024655,1736941854637,-151.0,0.000209,3]
[349024657,1736941854647,-151.0,0.000209,4]
[349024659,1736941854657,-258.77392283,0.00020923,2]
[349024661,1736941854668,-2504.36532884,0.0002094,2]
[349024663,1736941854678,-574.45,0.00020955,3]
[349024665,1736941854688,-353.42085061,0.00020956,3]
[349024667,1736941854698,-1322.86,0.00020956,3]
[349024670,1736941854708,-852.02,0.00020956,3]
[349024672,1736941854718,-730.97,0.00020956,3]
[349024674,1736941854729,-500.0,0.00020956,3]
[349024676,1736941854738,-500.0,0.00020956,3]
[349024678,1736941854748,-904.9,0.00020956,3]
[349024680,1736941854758,-585.34,0.00020956,3]
[349024682,1736941854768,-1623.31,0.00020956,3]
[349024684,1736941854777,-694.06,0.00020956,3]
[349024686,1736941854787,-500.0,0.00020956,3]
[349024687,1736941854796,-698.14,0.00020956,3]
[349024689,1736941854805,-1005.53,0.00020956,3]
[349024691,1736941854815,-921.61,0.00020956,3]
[349024694,1736941854825,-500.0,0.00020956,3]
[349024696,1736941854834,-1709.93,0.00020956,3]
[349024698,1736941854843,-500.0,0.00020956,3]
[349024700,1736941854853,-919.73,0.00020956,3]
[349024702,1736941854862,-500.0,0.00020957,3]
[349024703,1736941854872,-615.57,0.00020957,3]
[349024705,1736941854882,-583.51,0.00020957,3]
[349024707,1736941854892,-500.0,0.00020957,3]
[349024709,1736941854901,-500.0,0.00020957,3]
[349024711,1736941854911,-500.0,0.00020957,3]
[349024713,1736941854921,-500.0,0.00020957,3]
[349024715,1736941854930,-500.0,0.00020957,3]
[349024717,1736941854940,-500.0,0.00020957,3]
[349024719,1736941854950,-500.0,0.00020957,3]
[349024721,1736941854961,-500.0,0.00020957,3]
[349024724,1736941854971,-500.0,0.00020957,3]
[349024726,1736941854980,-500.0,0.00020957,3]
[349024728,1736941854990,-621.45,0.00020957,3]
[349024729,1736941855000,-500.0,0.00020957,3]
[349024731,1736941855009,-427.89159195,0.00020957,3]
[349024733,1736941855019,-500.0,0.00020957,3]
[349024736,1736941855028,-500.0,0.00020957,3]
[349024738,1736941855038,-500.0,0.00020957,3]
[349024740,1736941855047,-500.0,0.00020957,3]
[349024742,1736941855057,-500.0,0.00020957,3]
[349024744,1736941855067,-500.0,0.00020957,3]
[349024746,1736941855077,-500.0,0.00020957,3]
[349024748,1736941855086,-1211.75,0.00020957,2]
[349024750,1736941855095,-500.0,0.00020957,3]
[349024752,1736941855105,-44563.32,0.00020957,3]
[349024754,1736941855117,-741.96,0.00020957,3]
[349024756,1736941855128,-500.0,0.00020957,3]
[349024758,1736941855141,-873.43,0.00020957,3]
[349024760,1736941855151,-510.83,0.00020957,3]
[349024762,1736941855162,-500.0,0.00020957,3]
[349024764,1736941855171,-518.05501425,0.00020957,3]
[349024766,1736941855181,-500.0,0.00020957,3]
[349024768,1736941855193,-699.87,0.00020957,3]
[349024770,1736941855202,-500.0,0.00020957,3]
[349024772,1736941855212,-500.0,0.00020957,3]
[349024774,1736941855222,-500.0,0.00020957,3]
[349024776,1736941855231,-736.84,0.00020957,3]
[349024778,1736941855241,-500.0,0.00020957,3]
[349024780,1736941855250,-687.96,0.00020957,3]
[349024782,1736941855260,-19334.51,0.00020957,3]
[349024784,1736941855270,-500.0,0.00020957,3]
[349024786,1736941855280,-887.87,0.00020957,3]
[349024788,1736941855289,-619.17,0.00020957,3]
[349024790,1736941855300,-500.0,0.00020957,3]
[349024792,1736941855310,-500.0,0.00020957,3]
[349024794,1736941855319,-500.0,0.00020958,3]
[349024801,1736941855381,-500.0,0.00020958,3]
[349024803,1736941855397,-597.91,0.00020958,3]
[349024805,1736941855407,-500.0,0.00020958,3]
[349024807,1736941855417,-3834.85,0.00020958,3]
[349024809,1736941855427,-1842.52,0.00020958,3]
[349024811,1736941855436,-500.0,0.00020958,3]
[349024814,1736941855447,-500.0,0.00020958,3]
[349024816,1736941855457,-500.0,0.00020958,3]
[349024818,1736941855467,-529.13641396,0.00020976,2]
[349024820,1736941855476,-3000.0,0.00021,2]
[349024822,1736941855486,-602.34339036,0.00021003,2]
[349024824,1736941855495,-3000.0,0.0002101,2]
[349024826,1736941855505,-500.0,0.0002101,3]
[349024828,1736941855514,-500.0,0.0002101,3]
[349024830,1736941855523,-500.0,0.0002101,3]
[349024832,1736941855533,-500.0,0.0002101,3]
[349024834,1736941855542,-500.0,0.0002101,3]
[349024836,1736941855554,-500.0,0.0002101,3]
[349024838,1736941855563,-500.0,0.0002101,3]
[349024840,1736941855573,-500.0,0.0002101,3]
[349024841,1736941855582,-788.64,0.0002101,3]
[349024844,1736941855592,-500.0,0.0002101,3]
[349024845,1736941855601,-662.35,0.0002101,3]
[349024847,1736941855612,-500.0,0.0002101,3]
[349024850,1736941855622,-500.0,0.0002101,3]
[349024851,1736941855632,-911.3,0.0002101,3]
[349024853,1736941855648,-500.0,0.0002101,3]
[349024855,1736941855657,-500.0,0.0002101,3]
[349024857,1736941855667,-500.0,0.0002101,3]
[349024859,1736941855677,-500.0,0.0002101,3]
[349024861,1736941855686,-500.0,0.0002101,3]
[349024863,1736941855696,-500.0,0.0002101,3]
[349024865,1736941855706,-500.0,0.0002101,3]
[349024867,1736941855715,-500.0,0.0002101,3]
[349024869,1736941855726,-254.21123916,0.0002101,3]
[349024871,1736941855735,-500.0,0.0002101,3]
[349024873,1736941855746,-500.0,0.0002101,3]
[349024875,1736941855756,-500.0,0.0002101,3]
[349024877,1736941855765,-6408.57,0.00021016,3]
[349024879,1736941855774,-500.0,0.00021016,3]
[349024881,1736941855783,-500.0,0.00021016,3]
[349024883,1736941855792,-5326.98,0.00021016,3]
[349024885,1736941855802,-3000.0,0.0002102,2]
[349024887,1736941855812,-1000.0,0.00021021,2]
[349024889,1736941855822,-1000.0,0.00021021,2]
[349024890,1736941855831,-3000.0,0.0002103,2]
[349024891,1736941855840,-3000.0,0.0002104,2]
[349024892,1736941855849,-3000.0,0.0002105,2]
[349024893,1736941855858,-151.23423922,0.0002105,2]
[349024894,1736941855867,-151.23423922,0.0002105,2]
[349024897,1736941855877,-151.23423922,0.0002105,2]
[349024898,1736941855887,-151.23423922,0.0002105,2]
[349024901,1736941855898,-151.23423922,0.0002105,2]
[349024903,1736941855907,-151.23423922,0.0002105,2]
[349024905,1736941855917,-151.23423922,0.0002105,2]
[349024907,1736941855927,-151.23423922,0.0002105,2]
[349024909,1736941855937,-151.23423922,0.0002105,2]
[349024911,1736941855947,-151.23423922,0.0002105,2]
[349024913,1736941855957,-151.23423922,0.0002105,2]
[349024915,1736941855967,-151.23423922,0.0002105,2]
[349024917,1736941855976,-151.23423922,0.0002105,2]
[349024919,1736941855987,-151.23423922,0.0002105,2]
[349024921,1736941855997,-151.23423922,0.0002105,2]
[349024923,1736941856006,-151.23423922,0.0002105,2]
[349024925,1736941856016,-151.23423922,0.0002105,2]
[349024927,1736941856026,-151.23,0.0002105,2]
[349024929,1736941856035,-3000.0,0.0002106,2]
[349024931,1736941856045,-3000.0,0.0002107,2]
[349024933,1736941856055,-500.0,0.00021073,2]
[349024935,1736941856065,-167.59950773,0.00021073,2]
[349024937,1736941856074,-500.0,0.00021073,2]
[349024939,1736941856084,-3000.0,0.0002108,2]
[349024941,1736941856094,-3000.0,0.0002109,2]
[349024943,1736941856103,-574.45,0.00021092,3]
[349024945,1736941856113,-1322.86,0.00021093,3]
[349024947,1736941856126,-852.02,0.00021093,3]
[349024949,1736941856136,-730.97,0.00021093,3]
[349024951,1736941856146,-500.0,0.00021093,3]
[349024953,1736941856155,-500.0,0.00021093,3]
[349024955,1736941856166,-904.9,0.00021093,3]
[349024957,1736941856176,-585.34,0.00021093,3]
[349024959,1736941856186,-1623.31,0.00021093,3]
[349024961,1736941856196,-694.06,0.00021093,3]